Cogmind - Beta 13 @@@ ROGUE MODE // 2024.08.04 @ 14:10:59 Player: Cepulka Result: Destroyed by G-34 Mercenary with Small Laser Performance ------------- Evolutions (0) 0 Regions Visited (1) 200 Robots Destroyed (4) 20 Value Destroyed (64) 64 Prototype IDs (0) 0 Alien Tech Used (0) 0 Bonus (0) 0 TOTAL SCORE: 284 Bonus ------- None Cogmind --------- Core Integrity 0/250 Matter 300/300 Energy 98/100 System Corruption 0% Temperature Cool (6) Movement Core (50) Location -10/Materials Parts ------- > --- POWER (1) -------- (None) > --- PROPULSION (2) --- (None) > --- UTILITY (2) ------ (None) > --- WEAPON (2) ------- (None) > --- INVENTORY (5) ---- Aluminum Leg Wheel Medium Laser Small Laser Grenade Launcher Peak State ------------ > --- POWER ------------ Light Ion Engine > --- PROPULSION ------- Aluminum Leg Aluminum Leg > --- UTILITY ---------- (None) > --- WEAPON ----------- EM Pulse Gun Assault Rifle > --- INVENTORY -------- Wheel Wheel [Rating: 5] Favorites ----------- Power Light Ion Engine Engine Light Ion Engine Propulsion Aluminum Leg Leg Aluminum Leg Utility None Weapon Assault Rifle Energy Gun EM Pulse Gun Ballistic Gun Assault Rifle Build | -11 -10 ------- Run | Yrd Mat Slots Evolved . | . . Power . | . . Propulsion . | . . Utility . | . . Weapon . | . . Parts Attached 5 | 5 . Power 1 | 1 . Engine 1 | 1 . Core . | . . Reactor . | . . Propulsion 2 | 2 . Treads . | . . Leg 2 | 2 . Wheel . | . . Hover . | . . Flight . | . . Utility . | . . Device . | . . Storage . | . . Processor . | . . Hackware . | . . Protection . | . . Artifact . | . . Weapon 2 | 2 . Energy Gun 1 | 1 . Energy Cannon . | . . Ballistic Gun 1 | 1 . Ballistic Cannon . | . . Launcher . | . . Special Weapon . | . . Impact Weapon . | . . Slashing Weapon . | . . Piercing Weapon . | . . Special Melee Weapon . | . . Unidentified Prototypes . | . . Parts Lost 5 | . 5 Power 1 | . 1 Propulsion 2 | . 2 Utility . | . . Weapon 2 | . 2 Highest Loss Streak 4 | . 4 To Critical Strikes . | . . Average Slot Usage (%) 32 | . 32 Engine 5 | . 5 Leg 16 | . 16 Energy Gun 5 | . 5 Ballistic Gun 5 | . 5 Naked Turns 89 | . 89 Heaviest Build 7 | 7 7 Greatest Support 20 | 20 20 Greatest Overweight (x) . | . . Average Overweight (x) . | . . Largest Inventory Capacity 5 | 5 5 Average Capacity 5 | 5 5 Most Carried 5 | 5 5 Average Carried 4 | 2 5 Final Capacity 5 | 5 5 Final Carried 5 | 5 5 Class Distribution -------------------- 100% | Mutant Dominant Class ---------------- Mutant | -10/Materials Resources | -11 -10 ----------- Run | Yrd Mat Matter Collected 256 | 256 . Remotely . | . . Salvage Created 41 | 41 . Parts 3 | 2 1 Haulers Intercepted . | . . Recyclers Shooed 1 | . 1 Parts Field Recycled . | . . Retrieved Matter . | . . Parts Self-Destructed . | . . Prevented . | . . Kills | -11 -10 ------- Run | Yrd Mat Combat Hostiles Destroyed 4 | 1 3 Melee 3 | . 3 Guns 1 | 1 . Classes Destroyed 2 | 1 1 Swarmer 3 | . 3 Grunt 1 | 1 . Best Kill Streak 3 | 1 3 Combat Bots Only 3 | 1 3 Max Kills in Single Turn 1 | 1 1 Gunslinging . | . . Exploded . | . . Melee 1 | . 1 Uniques/NPCs Destroyed . | . . Combat | -11 -10 -------- Run | Yrd Mat Hostile Shots Fired 100 | 2 98 Missed 27 | . 27 Damage Taken 648 | 23 625 Core 256 | 12 244 Absorbed by Shields . | . . Core Remaining (%) 95 | 95 . Volleys Fired 2 | 2 . Largest 2 | 2 . Hottest 60 | 60 . Shots Fired 4 | 4 . Gun 4 | 4 . Cannon . | . . Launcher . | . . Special . | . . Kinetic 2 | 2 . Thermal . | . . Explosive . | . . Electromagnetic 2 | 2 . Robot Hit Streak 1 | 1 . Robot Miss Streak 1 | 1 . Penetration Max . | . . Secondary Targets . | . . Shots Hit Robots 2 | 2 . Core Hits 14 | 1 13 Critical Kills . | . . Critical Parts Destroyed . | . . Critical Strikes . | . . Melee Attacks . | . . Impact . | . . Slashing . | . . Piercing . | . . Sneak Attacks . | . . Combat Hostiles . | . . Follow-up Attacks . | . . Damage Inflicted 99 | 27 72 Guns 27 | 27 . Cannons . | . . Explosions . | . . Melee . | . . Ramming 72 | . 72 Kinetic . | . . Thermal . | . . Explosive . | . . Electromagnetic 27 | 27 . Impact . | . . Slashing . | . . Piercing . | . . Highest Corruption . | . . Average Corruption . | . . Corruption Purged . | . . Corruption Blocked . | . . Overload Shots . | . . Overflow Damage . | . . Projectiles . | . . Explosions . | . . Melee . | . . Knockbacks . | . . Impact . | . . Kinetic . | . . Secondary . | . . Self-Inflicted Damage . | . . Shots . | . . Rammed . | . . Targets Rammed 55 | . 55 Kicked 55 | . 55 Crushed . | . . Highest Temperature 12 | 12 . Average Temperature 10 | 10 . Received Heat Transfer 66 | 12 54 Siege Activations . | . . Robots Corrupted . | . . Combat Hostiles . | . . Parts Fried . | . . Impact Corruptions . | . . Robots Melted . | . . Combat Hostiles . | . . Parts Melted . | . . Heat Transferred . | . . Parts Sabotaged . | . . Parts Stolen . | . . Parts Stripped . | . . Power Chain Reactions . | . . Alert | -11 -10 ------- Run | Yrd Mat Peak Influence 150 | 20 150 Initial 13 | . 13 Average 43 | 3 53 Maximum Alert Level . | . . Low Security (%) 100 | 100 100 Level 1 . | . . Level 2 . | . . Level 3 . | . . Level 4 . | . . Level 5 . | . . High Security . | . . Max Security . | . . Squads Dispatched 2 | . 2 Investigation 1 | . 1 Extermination . | . . Reinforcement 1 | . 1 Assault . | . . Garrison . | . . Intercept . | . . Searches Triggered . | . . Construction Impeded . | . . Haulers Reinforced . | . . Active Scanning Responses . | . . Cargo Convoy Interrupts . | . . Stealth | -11 -10 --------- Run | Yrd Mat Distress Signals . | . . Communications Jammed . | . . Distress Signals . | . . Times Spotted 12 | 1 11 Peak Tracking Total 5 | 1 5 Tactical Retreats 2 | . 2 Traps | -11 -10 ------- Run | Yrd Mat Traps Triggered 1 | . 1 Indirectly . | . . Trap Hack Attempts . | . . Triggered . | . . Disarmed . | . . Reprogrammed . | . . Reused . | . . Traps Extracted . | . . Installed . | . . Triggered . | . . Machines | -11 -10 ---------- Run | Yrd Mat Machines Disabled . | . . Max in Single Turn . | . . Machines Repaired . | . . Machines Dismantled . | . . Machines Sabotaged . | . . Overloaded Fab Kills . | . . Hacking | -11 -10 --------- Run | Yrd Mat Machines Accessed . | . . Terminals . | . . Fabricators . | . . Repair Stations . | . . Recycling Units . | . . Scanalyzers . | . . Garrison Access . | . . Total Hacks . | . . Successful . | . . Failed . | . . Catastrophic . | . . Database Lockouts . | . . Manual . | . . Terminals . | . . Fabricators . | . . Repair Stations . | . . Recycling Units . | . . Scanalyzers . | . . Garrison Access . | . . Terminal Hacks . | . . Fabricator Hacks . | . . Repair Station Hacks . | . . Recycling Unit Hacks . | . . Scanalyzer . | . . Garrison Access Hacks . | . . Unauthorized Hacks . | . . Terminals . | . . Fabricators . | . . Repair Stations . | . . Recycling Units . | . . Scanalyzers . | . . Garrison Access . | . . Data Cores Recovered . | . . Used . | . . Hacking Detections . | . . Full Trace Events . | . . Feedback Events . | . . Feedback Blocked . | . . Robot Schematics Acquired . | . . Robots Built . | . . Authchips . | . . Time . | . . Total Robot Build Rating . | . . Part Schematics Acquired . | . . Parts Built . | . . Authchips . | . . Time . | . . Total Part Build Rating . | . . Parts Repaired . | . . Time . | . . Parts Recycled . | . . Recycled Matter . | . . Retrieved Matter . | . . Retrieved Components . | . . Parts Scanalyzed . | . . Part Schematics Acquired . | . . Parts Damaged . | . . Bothacking | -11 -10 ------------ Run | Yrd Mat Used RIF Installer . | . . Robots Hacked . | . . Non-combat . | . . Combat . | . . Robot Hacks Applied . | . . Relay Couplers Released . | . . Fabnet Peak Effective % . | . . Robots Rewired . | . . Allies Hacked . | . . Hacks Repelled . | . . Allies | -11 -10 -------- Run | Yrd Mat Total Allies . | . . Largest Group . | . . Highest-Rated Group . | . . Highest-Rated Ally . | . . Total Orders . | . . Ally Attacks . | . . Total Damage . | . . Kills . | . . Allies Corrupted . | . . Allies Melted . | . . Intel | -11 -10 ------- Run | Yrd Mat Robot Analysis Total . | . . Derelict Logs Recovered . | . . Drone Launches . | . . Drone Recoveries . | . . Exploration | -11 -10 ------------- Run | Yrd Mat Turns Passed 451 | 93 358 Spaces Moved 375 | 71 304 Core 151 | 15 136 Treads . | . . Legs 224 | 56 168 Wheels . | . . Hover . | . . Flight . | . . Fastest Speed 50 | 50 50 Average Speed 91 | 105 88 Slowest Speed 120 | 120 120 Overloaded Moves . | . . Propulsion Burnouts . | . . Robots Hopped . | . . Cave-ins Triggered . | . . Exploration Rate (%) 29 | 9 50 Regions Visited 1 Branch Regions . Pre-discovered Areas . | . . Known Exits Taken . | . . Unknown Exits Taken 1 | 1 . Scrap Searched . | . . Spaces Dug . | . . Terrain Destroyed . | . . Melee . | . . Projectile . | . . AOE . | . . Terrain Rammed . | . . Walls Destroyed . | . . Machines Disabled . | . . Actions | -11 -10 --------- Run | Yrd Mat Total 465 | 83 382 Wait 21 | . 21 Move 374 | 70 304 Hop . | . . Pick Up 7 | 6 1 Fast Attach 4 | 4 . Attach 1 | 1 . Detach . | . . Swap . | . . Drop 1 | . 1 Fire 2 | 2 . Melee . | . . Ram . | . . Kick 55 | . 55 Crush . | . . Escape Stasis . | . . Rewire . | . . Trap . | . . Miscellaneous . | . . Route ------- -11/Scrapyard -10/Materials (discovered 2 exits: [*Mat] / [*Min]) History --------- Turn | Location | Event 2 | -11/Scrapyard | Met Revision 17 70 | -11/Scrapyard | Discovered new exit (range 8) 94 | -11/Scrapyard | Entered Materials 252 | -10/Materials | Core integrity fell below 50% 274 | -10/Materials | Lost 4 parts (1p1n2w) 300 | -10/Materials | Build established: Mutant 328 | -10/Materials | Discovered new exit (range 12) 358 | -10/Materials | Core integrity fell below 20% 398 | -10/Materials | Discovered new exit (range 14) 452 | -10/Materials | Destroyed by G-34 Mercenary with Small Laser Last Messages --------------- Kicked S-10 Pest. S-10 Pest destroyed. Kicked S-10 Pest out of the way. Kicked S-10 Pest. S-10 Pest destroyed. Kicked R-06 Scavenger out of the way. You may prefer to play using a different font style. Try some of the others via the option menu's second option. EXIT=FOUND Kicked W-16 Scout. Aluminum Leg destroyed. Atomic Centrifuge disabled. K-01 Serf collects debris. EXIT=FOUND T-07 Excavator is excavating. Triggered Alarm Trap. An alarm sounds. ALERT: Alarm triggered, dispatching investigation squad. Map ----- +----------------------------------------------------+ | ?????????????????????????????????????????????????? | | ?????????????????????????????????????????????????? | | ?????????????????????????????????????????????????? | | ?????????????????????????????????????????????????? | | ?????????????????????????????????????????????????? | | ###??????????????????##??????????????????????????? | | #?????????????????? #??????????????????????????? | | #?????????????????? #??????????????????????????? | | #?????????????? "Y" #??????????????????????????? | | #?????????????? #??????????????????????????? | | #?????????????? #??????????????????????????? | | #???????????????""" #??????????????????????????? | | #???????????????""" #??????????????????????????? | | ??????????????????"" ???????????????????????????? | | ???????###+###????? #######????????????????????? | | ######## #######+## ####????????????###### | | !##???????##### | | ######## !#???????# # | | #??????# !#???????# # """ | | #??????# ##+####### !#???????# # """ | | ???????#######????????## ## !#???????# # """ | | ???????????????????????# #??!##???????# # | | ???????????????????????# #???#????????# + """ | | ???????????????????????# #????????????# # """ | | ??????????????????????## ##???????????### # """ | | ??????????????????????# @ #?????????????# # = | | ??????????????????????# g #?????????????# # | | ??????????????????????# k +?????????????# # | | ??????????????????????# # ????????????# ###### | | ??????????????????????# # ???????????# # "T" | | ??########????????????## ########???????#%#% | | ??#]]//[[#########?????# g# %%#########%#%! | | ??#]]//[[#"""""""#?????# + """%+%%%%%%%%%+%% | | ??# #" !"| "#?????# # """%######+##+#%""" | | ### #" "####### # """ #??# %%#*""" | | % # #??# # """ | | < #! #??# ###### | | ########??# #????? | | ## ##+########?????????# "T" #????? | | !! ########## ? ???????????????# """ #????? | | ! +????????#??? "?????????????########????? | | #??????????????""????????????????????????? | | #???????????????""???????????????????????? | | # #### ##???????????????? ???????????????????????? | | # #??# #?????????????????????????????????????????? | | # #??# #?????????????????????????????????????????? | | #/####+#?????????????????????????????????????????? | | #????????????????????????????????????????????? | | """ #????????????????????????????????????????????? | | """ #????????????????????????????????????????????? | +----------------------------------------------------+ Best States ------------- Heat Dissipation 25 Energy Generation 10 Energy Capacity 125 Matter Stores 300 Matter Capacity 300 Sight Range 16 Terrain Scan Density 10 Evasion (%) 55 Item Schematics ----------------- None Robot Schematics ------------------ None Fabricated ------------ Nothing Alien Tech Used ----------------- None Achievements -------------- None Challenges ------------ None Game ------ Seed EnhancedTimingLattice Manual? 0 Play Time 00:18:07 Cumulative 0.4 hours Start 2024.07.25 @ 06:02:53 End 2024.08.04 @ 14:10:59 Sessions 3 Manual Loads 0 Difficulty Rogue Special Mode None Game No. 2 Rogue 2 Adventurer 0 Explorer 0 Win Type - Total 0 Types 0/0/0/0/0/0/0/0/0 Lore% 0 Gallery% 1 Achievement% 1 Wizard Run 0 Options --------- Layout 1 ASCII 0 Keyboard 0 Movement Numpad Keybinds 0 Fullscreen 2 Font 24/Smallcaps Map View 50x35 Zoom Use 0% Tactical HUD 0 Map Filters NONE Filters NONE Steam 1 RUN: 0fdfce0a-c383-42eb-82a7-4a44e764a1f7